bitfinex-derivatives/quotes_SOLF0:USTF0_20250821
["timestamp","ask_amount","ask_price","bid_price","bid_amount"]
[1755811042274,3.04,181.02,180.99,0.04205258]
[1755811042475,3.85567993,181.04,180.99,3.08205258]
[1755811042674,3.04,181.01,180.99,0.04205258]
[1755811043282,3.85567993,181.04,180.99,0.04205258]
[1755811043484,3.03,181.0,180.99,0.04205258]
[1755811044988,3.03,181.03,180.99,0.04205258]
[1755811045186,3.03,181.02,180.99,0.04205258]
[1755811045580,3.03,181.02,180.99,2.98205258]
[1755811045782,3.85567993,181.04,180.99,0.04205258]
[1755811046087,3.03,181.01,180.99,0.04205258]
[1755811048287,3.03,181.0,180.99,0.04205258]
[1755811055498,3.03,181.02,180.99,2.98205258]
[1755811056593,3.85567993,181.03,180.99,0.04205258]
[1755811056801,3.03,181.0,180.99,0.04205258]
[1755811057396,6.21143778,181.05,180.99,0.04205258]
[1755811057597,3.03,181.03,181.0,2.94]
[1755811057993,3.85567993,181.03,180.99,0.04205258]
[1755811058404,3.03,181.0,180.99,0.04205258]
[1755811059106,3.03,181.0,180.92,2.94]
[1755811059309,3.03,180.96,180.88,7.58199386]
[1755811060103,3.03,180.96,180.88,2.94]
[1755811060508,0.03932962,180.94,180.88,2.94]
[1755811062404,0.03932962,180.94,180.86,216.80243446]
[1755811062604,3.03,180.89,180.84,2.94]
[1755811063408,3.07182932,180.88,180.84,2.94]
[1755811064314,0.04182932,180.88,180.81,2.94]
[1755811067913,3.89750925,180.88,180.81,2.94]
[1755811068119,3.03,180.87,180.81,2.94]
[1755811068316,3.85567993,180.86,180.82,2.94]
[1755811068520,0.04182932,180.88,180.85,2.94]
[1755811068722,3.85567993,180.91,180.85,2.94]
[1755811069220,3.06497091,180.88,180.85,2.94]
[1755811069519,0.03497091,180.88,180.82,2.94]
[1755811071121,0.03497091,180.88,180.82,6.79567993]
[1755811071515,0.03497091,180.88,180.82,2.94]
[1755811072624,0.03497091,180.88,180.83,3.85567993]
[1755811073220,0.03497091,180.88,180.87,3.05]
[1755811080333,0.03497091,180.88,180.84,3.85567993]
[1755811080532,0.03497091,180.88,180.86,3.05]
[1755811080739,2.96,180.92,180.86,3.05]
[1755811081136,0.03703253,180.89,180.86,3.05]
[1755811081732,0.03703253,180.89,180.85,3.05]
[1755811081936,0.03703253,180.89,180.86,3.85567993]
[1755811082137,2.96,180.95,180.88,3.05]
[1755811082637,0.03595545,180.89,180.88,3.05]
[1755811083036,2.96,180.95,180.88,3.05]
[1755811083232,0.04065243,180.9,180.88,3.05]
[1755811083432,0.04065243,180.9,180.89,3.05]
[1755811085637,0.04065243,180.9,180.89,6.90567993]
[1755811085834,3.85567993,181.01,180.9,3.05]
[1755811085835,2.96,181.0,180.9,3.05]
[1755811086034,2.96,181.04,180.94,3.85567993]
[1755811086241,2.96,181.04,180.96,3.85567993]
[1755811086444,3.85567993,181.02,180.95,3.05]
[1755811086636,3.85567993,180.98,180.88,3.85567993]
[1755811086834,3.85567993,180.94,180.86,3.05]
[1755811087039,3.85567993,180.94,180.91,0.0392155]
[1755811087340,2.96,180.96,180.92,3.05]
[1755811087734,6.21143778,181.03,180.82,10.12689968]
[1755811087735,2.96,180.92,180.82,3.05]
[1755811087931,2.96,180.89,180.82,3.05]
[1755811088634,2.96,180.88,180.84,0.03520495]
[1755811088839,3.85567993,180.9,180.84,0.03520495]
[1755811089035,2.96,180.87,180.84,0.03520495]
[1755811089838,3.85567993,180.88,180.84,0.03520495]
[1755811090031,2.96,180.87,180.84,0.03520495]
[1755811090240,2.96,180.86,180.82,3.05]
[1755811090631,2.96,180.86,180.84,0.0356514]
[1755811091034,6.81567993,180.9,180.84,0.0356514]
[1755811091234,6.81567993,180.93,180.85,3.05]
[1755811091841,6.81567993,180.93,180.87,0.03570742]
[1755811094643,2.96,180.93,180.88,3.05]
[1755811094942,3.85567993,180.95,180.89,3.05]
[1755811095942,3.85567993,180.93,180.87,0.03570742]
[1755811096143,2.96,180.9,180.87,0.03570742]
[1755811096534,2.96,180.9,180.84,3.05]
[1755811096941,3.85567993,180.91,180.87,0.03693107]
[1755811097145,2.96,180.89,180.87,0.03693107]
[1755811097349,2.96,180.88,180.8,3.05]
[1755811097646,6.81567993,180.85,180.77,3.05]
[1755811098150,3.85567993,180.87,180.77,3.05]
[1755811098339,9.24301372,180.89,180.77,3.05]
[1755811098737,0.04049761,180.84,180.77,3.05]
[1755811099140,0.04049761,180.84,180.77,9.33301372]
[1755811099345,0.04049761,180.84,180.78,3.05]
[1755811101947,2.96,180.83,180.74,3.05]
[1755811102142,2.96,180.83,180.73,371.38]
[1755811102347,2.96,180.83,180.7,3.05]
[1755811102348,6.28301372,180.78,180.7,3.05]
[1755811102552,2.96,180.77,180.66,3.05]
[1755811102745,6.28301372,180.76,180.66,3.05]
[1755811102942,0.03696793,180.8,180.72,0.03598384]
[1755811103145,2.89,180.74,180.72,0.03598384]
[1755811103648,2.89,180.74,180.66,3.05]
[1755811104944,0.03681112,180.72,180.66,3.05]
[1755811105748,0.03681112,180.72,180.66,8.5863]
[1755811105950,0.03681112,180.72,180.67,2.92]
[1755811106142,0.03681112,180.72,180.66,5.5363]
[1755811106345,0.03681112,180.72,180.7,2.92]
[1755811107043,0.03681112,180.72,180.65,212.59018068]
[1755811107044,0.03681112,180.72,180.71,2.92]
[1755811107244,0.03681112,180.72,180.67,2.92]
[1755811107451,0.03681112,180.72,180.66,2.92]
[1755811107753,2.92681112,180.72,180.66,2.92]
[1755811108552,2.92681112,180.72,180.55,2.92]
[1755811108553,2.89,180.66,180.55,2.92]
[1755811109044,2.89,180.63,180.52,3.88372196]
[1755811109244,0.04072903,180.62,180.52,2.92]
[1755811109442,2.89,180.61,180.52,2.92]
[1755811110152,0.04076927,180.58,180.52,2.92]
[1755811111649,2.89,180.57,180.47,2.92]
[1755811111846,2.89,180.57,180.47,143.52]
[1755811112346,6.28301372,180.55,180.47,2.92]
[1755811112543,2.89,180.54,180.43,2.92]
[1755811113349,6.28301372,180.52,180.43,2.92]
[1755811114349,2.89,180.51,180.43,2.92]
[1755811114752,2.89,180.51,180.41,371.74]
[1755811115252,9.17301372,180.51,180.41,371.74]
[1755811115649,2.89,180.61,180.42,2.92]
[1755811115852,6.28301372,180.55,180.42,2.92]
[1755811116251,6.28301372,180.55,180.42,8.4637]
[1755811116452,6.28301372,180.55,180.42,2.92]
[1755811116656,2.89,180.54,180.42,143.92]
[1755811117051,2.89,180.54,180.42,2.92]
[1755811117251,6.28301372,180.52,180.42,143.96]
[1755811117451,2.89,180.51,180.38,2.92]
[1755811117653,6.28301372,180.49,180.39,2.92]
[1755811118353,2.89,180.51,180.39,2.92]
[1755811118554,2.89,180.51,180.4,2.92]
[1755811120547,6.28301372,180.53,180.41,141.2]
[1755811120750,2.89,180.55,180.43,2.92]
[1755811121154,2.89,180.55,180.44,2.92]
[1755811122164,2.89,180.59,180.46,8.4623]
[1755811122362,2.89,180.58,180.46,2.92]
[1755811122563,2.89,180.55,180.46,2.92]
[1755811123454,9.17301372,180.59,180.46,2.92]
[1755811123656,141.02,180.61,180.46,2.92]
[1755811123657,2.89,180.55,180.46,2.92]
[1755811124463,2.89,180.52,180.41,2.92]
[1755811124960,2.89,180.49,180.41,2.92]
[1755811125158,2.89,180.49,180.37,2.92]
[1755811125559,9.17301372,180.49,180.37,2.92]
[1755811125952,2.89,180.49,180.37,2.92]
[1755811126158,6.28301372,180.52,180.38,2.92]
[1755811126762,6.28301372,180.52,180.39,142.94]
[1755811126962,6.28301372,180.49,180.4,2.92]
[1755811127164,2.89,180.48,180.4,2.92]
[1755811127960,2.89,180.48,180.36,214.9232631]
[1755811128469,9.17301372,180.45,180.36,2.92]
[1755811129256,6.28301372,180.44,180.36,2.92]
[1755811130264,6.28301372,180.41,180.31,374.98]
[1755811131559,2.89,180.43,180.31,374.98]
[1755811131756,9.17301372,180.43,180.32,2.92]
[1755811132560,9.17301372,180.43,180.32,8.4668]
[1755811132765,6.28301372,180.46,180.33,2.92]
[1755811132967,2.94,180.42,180.33,2.92]
[1755811135269,6.28301372,180.4,180.31,372.06]
[1755811135469,2.94,180.39,180.29,2.97]
[1755811136063,6.28301372,180.36,180.26,2.97]
[1755811136262,2.94,180.35,180.26,2.97]
[1755811136972,0.03979831,180.32,180.26,2.97]
[1755811137564,0.03979831,180.32,180.25,363.86782336]
[1755811137764,0.03979831,180.32,180.3,2.97]
[1755811137964,0.03979831,180.32,180.31,2.97]
[1755811140169,2.94,180.43,180.31,144.96]
[1755811140462,2.94,180.42,180.32,2.97]
[1755811141062,2.94,180.39,180.27,147.47]
[1755811141261,2.94,180.39,180.27,144.5]
[1755811141462,2.94,180.39,180.29,2.97]
[1755811141664,2.94,180.39,180.31,0.04138613]
[1755811142562,2.94,180.39,180.32,2.97]
[1755811142872,6.28301372,180.43,180.32,2.97]
[1755811143063,2.94,180.39,180.32,2.97]
[1755811143563,2.94,180.36,180.28,2.97]
[1755811143762,2.94,180.35,180.34,0.0393149]
[1755811143970,0.03559579,180.34,180.25,212.11957742]
[1755811144265,0.03559579,180.34,180.24,147.69]
[1755811144266,6.28301372,180.31,180.24,2.97]
[1755811145359,0.03990384,180.29,180.2,523.66301372]
[1755811145668,0.03990384,180.29,180.21,2.97]
[1755811146262,0.03990384,180.29,180.23,6.28301372]
[1755811146467,0.03990384,180.29,180.2,518.34544645]
[1755811146468,2.94,180.47,180.28,2.97]
[1755811146769,2.94,180.42,180.28,147.71]
[1755811146971,2.94,180.42,180.3,2.97]
[1755811147469,6.28301372,180.4,180.3,2.97]
[1755811147673,2.94,180.36,180.25,2.97]
[1755811147861,2.94,180.35,180.34,0.03646731]
[1755811148264,6.28301372,180.37,180.25,2.97]
[1755811148464,6.28301372,180.37,180.33,0.03551714]
[1755811148667,2.94,180.35,180.33,0.03551714]
[1755811148967,2.94,180.35,180.25,2.97]
[1755811149271,2.94,180.34,180.32,0.03828092]
[1755811149672,6.28301372,180.37,180.25,2.97]
[1755811149971,2.94,180.38,180.31,0.04156476]
[1755811150170,9.22301372,180.42,180.31,3.01156476]
[1755811150371,2.94,180.42,180.31,2.97]
[1755811150768,2.94,180.42,180.35,0.03750656]
[1755811152275,2.94,180.46,180.36,2.97]
[1755811153271,2.94,180.49,180.39,0.03645339]
[1755811153470,6.28301372,180.47,180.39,0.03645339]
[1755811154074,2.94,180.49,180.39,0.03645339]
[1755811154571,2.94,180.49,180.39,5.58115339]
[1755811154780,2.94,180.49,180.39,3.00645339]
[1755811155076,2.94,180.49,180.39,8.55105339]
[1755811155272,2.94,180.49,180.39,3.00645339]
[1755811156075,2.94,180.49,180.4,2.97]
[1755811156676,2.94,180.49,180.42,5.5436]
[1755811156872,2.94,180.52,180.43,0.04116119]
[1755811157279,2.94,180.52,180.43,5.58446119]
[1755811157576,2.94,180.52,180.43,0.04116119]
[1755811157777,2.94,180.52,180.43,8.55456119]
[1755811157970,2.94,180.52,180.43,3.01116119]
[1755811158379,2.94,180.56,180.45,5.5426]
[1755811158683,2.94,180.56,180.46,2.97]
[1755811158870,2.94,180.56,180.47,5.5422]
[1755811159274,2.94,180.56,180.49,0.03898129]
[1755811159678,372.7,180.59,180.49,0.03898129]
[1755811159679,372.7,180.59,180.49,3.00898129]
[1755811160079,9.22301372,180.6,180.49,3.00898129]
[1755811160584,9.22301372,180.6,180.49,2.97]
[1755811160974,9.22301372,180.6,180.53,0.04234496]
[1755811161380,2.94,180.6,180.53,0.04234496]
[1755811161574,6.28301372,180.59,180.53,0.04234496]
[1755811161980,2.94,180.58,180.45,9.25301372]
[1755811162277,6.28301372,180.59,180.54,0.04135558]
[1755811162682,2.94,180.58,180.45,9.25301372]
[1755811163078,6.28301372,180.59,180.55,0.03652917]
[1755811163287,2.86,180.56,180.55,0.03652917]
[1755811163481,2.86,180.56,180.45,9.25301372]
[1755811163679,2.86,180.56,180.55,0.03968506]
[1755811164081,9.14301372,180.56,180.45,2.97]
[1755811164483,2.86,180.55,180.54,0.04174188]
[1755811164684,2.86,180.55,180.45,2.97]
[1755811165181,2.86,180.54,180.53,0.03960673]
[1755811165387,2.86,180.58,180.48,3.05]
[1755811165783,2.86,180.58,180.52,0.0360228]
[1755811176501,9.14301372,180.58,180.52,0.0360228]
[1755811176694,6.28301372,180.58,180.52,0.0360228]
[1755811176896,2.86,180.57,180.52,0.0360228]
[1755811178098,2.86,180.55,180.52,0.0360228]
[1755811178291,6.28301372,180.58,180.52,0.0360228]
[1755811178492,2.86,180.57,180.52,0.0360228]
[1755811178692,6.28301372,180.58,180.52,0.0360228]
[1755811178693,2.86,180.55,180.52,0.0360228]
[1755811179697,2.86,180.57,180.52,0.0360228]
[1755811179898,2.86,180.55,180.52,0.0360228]
[1755811180094,2.86,180.57,180.52,3.0860228]
[1755811180392,2.86,180.6,180.52,3.0860228]
[1755811180598,2.86,180.6,180.52,3.05]
[1755811181002,2.86,180.6,180.54,0.03725562]
[1755811184802,144.26,180.66,180.54,0.03725562]
[1755811184803,2.86,180.58,180.54,0.03725562]
[1755811185097,2.86,180.55,180.54,0.03725562]
[1755811185298,2.86,180.55,180.48,3.05]
[1755811185498,2.86,180.55,180.53,0.04246209]
[1755811185694,6.28301372,180.59,180.53,0.04246209]
[1755811185695,9.14301372,180.59,180.53,0.04246209]
[1755811186000,2.86,180.59,180.53,0.04246209]
[1755811190402,2.86,180.63,180.54,3.05]
[1755811191300,2.86,180.63,180.57,0.04085293]
[1755811192499,6.28301372,180.61,180.57,0.04085293]
[1755811192702,2.86,180.58,180.57,0.04085293]
[1755811192904,9.14301372,180.58,180.57,0.04085293]
[1755811199306,6.14708206,180.63,180.58,2.97]
[1755811199508,3.1,180.63,180.57,0.04085293]
[1755811199704,3.1,180.63,180.54,2.97]
[1755811200003,3.1,180.63,180.58,0.04171292]
[1755811200208,3.1,180.62,180.58,0.04171292]
[1755811200608,3.1,180.61,180.58,0.04171292]
[1755811201801,3.1,180.63,180.59,2.97]
[1755811202001,9.24708206,180.65,180.6,2.97]
[1755811202203,3.1,180.64,180.6,2.97]
[1755811203212,6.14708206,180.66,180.6,2.97]
[1755811203812,9.38301372,180.67,180.6,2.97]
[1755811204604,6.28301372,180.67,180.62,0.04016896]
[1755811205008,3.1,180.65,180.62,0.04016896]
[1755811205204,3.1,180.66,180.62,0.04016896]
[1755811205409,6.28301372,180.64,180.62,0.04016896]
[1755811205716,3.1,180.63,180.62,0.04016896]
[1755811206205,3.1,180.63,180.48,6.1027084]
[1755811206206,3.1,180.63,180.49,2.97]
[1755811206615,3.1,180.6,180.49,2.97]
[1755811207413,0.03670269,180.56,180.49,2.97]
[1755811208307,0.03670269,180.56,180.51,2.97]
[1755811208504,0.03670269,180.56,180.53,2.97]
[1755811208704,0.03670269,180.56,180.55,2.97]
[1755811210415,3.1,180.65,180.55,3.53]
[1755811210614,3.1,180.65,180.55,2.97]
[1755811211607,3.1,180.65,180.58,0.03722538]
[1755811211810,3.1,180.65,180.59,2.97]
[1755811212425,375.72,180.69,180.59,2.97]
[1755811212626,3.1,180.69,180.59,2.97]
[1755811213221,3.1,180.72,180.62,0.04259891]
[1755811213525,3.1,180.72,180.63,2.97]
[1755811213925,3.1,180.72,180.66,0.03714756]
[1755811214221,6.28301372,180.7,180.66,0.03714756]
[1755811214425,3.1,180.69,180.66,0.03714756]
[1755811214628,3.1,180.67,180.66,0.03714756]
[1755811215717,6.28301372,180.7,180.66,0.03714756]
[1755811215915,6.14708206,180.72,180.66,0.03714756]
[1755811215916,3.1,180.72,180.66,0.03714756]
[1755811217421,6.28301372,180.68,180.66,0.03714756]
[1755811217629,3.1,180.67,180.66,0.03714756]
[1755811220731,3.1,180.68,180.66,0.03714756]
[1755811223227,6.28301372,180.69,180.66,0.03714756]
[1755811223426,147.60301372,180.72,180.66,0.03714756]
[1755811223730,147.60301372,180.72,180.67,2.96]
[1755811223731,2.87,180.71,180.67,2.96]
[1755811224228,147.60301372,180.72,180.66,0.03714756]
[1755811224423,2.87,180.69,180.66,0.03714756]
[1755811224620,2.87,180.67,180.66,0.03714756]
[1755811225228,6.28301372,180.69,180.66,0.03714756]
[1755811225420,2.87,180.68,180.66,0.03714756]
[1755811225627,2.87,180.67,180.66,0.03714756]
[1755811229931,2.87,180.71,180.66,0.03714756]
[1755811230132,150.47301372,180.72,180.66,0.03714756]
[1755811230726,2.87,180.71,180.66,0.03714756]
[1755811230929,147.60301372,180.72,180.66,0.03714756]
[1755811231126,2.87,180.69,180.66,0.03714756]
[1755811231326,2.87,180.68,180.66,0.03714756]
[1755811231939,2.87,180.71,180.66,0.03714756]
[1755811232134,2.87,180.68,180.66,0.03714756]
[1755811232333,2.87,180.67,180.66,0.03714756]
[1755811232638,2.87,180.67,180.53,2.96]
[1755811232830,6.28301372,180.66,180.53,2.96]
[1755811233335,2.87,180.65,180.53,2.96]
[1755811233541,2.87,180.65,180.54,5.5398]
[1755811233732,2.87,180.65,180.55,2.96]
[1755811234035,0.03590995,180.61,180.55,2.96]
[1755811235738,0.03590995,180.61,180.49,2.96]
[1755811236040,0.03590995,180.61,180.51,2.96]
[1755811236242,2.87,180.62,180.51,2.96]
[1755811236434,6.28301372,180.6,180.51,2.96]
[1755811236631,9.15301372,180.6,180.51,2.96]
[1755811237140,0.03650669,180.57,180.51,2.96]
[1755811240540,0.03650669,180.57,180.54,2.96]
[1755811240845,0.03650669,180.57,180.56,2.96]
[1755811241344,0.03650669,180.57,180.56,3.52]
[1755811241539,0.03650669,180.57,180.56,9.0595]
[1755811241742,2.87,180.68,180.56,3.52]
[1755811241942,2.87,180.68,180.56,2.96]
[1755811242141,2.87,180.68,180.58,2.96]
[1755811242743,12.43009578,180.71,180.58,2.96]
[1755811242940,6.28301372,180.71,180.58,2.96]
[1755811243147,2.87,180.7,180.61,0.03871233]
[1755811243639,6.14708206,180.74,180.61,2.99871233]
[1755811243835,2.87,180.73,180.61,8.53641233]
[1755811244043,2.87,180.73,180.62,2.96]
[1755811244847,2.87,180.73,180.65,0.03717754]
[1755811245043,2.87,180.73,180.66,2.96]
[1755811246945,6.14708206,180.78,180.66,2.96]
[1755811247144,378.52301372,180.79,180.68,5.5358]
[1755811247145,384.67009578,180.79,180.68,5.5358]
[1755811247342,384.67009578,180.79,180.69,2.96]
[1755811247747,384.67009578,180.79,180.72,0.04110715]
[1755811248251,378.52301372,180.79,180.72,0.04110715]
[1755811251254,2.87,180.78,180.72,0.04110715]
[1755811251549,6.28301372,180.76,180.72,0.04110715]
[1755811251745,2.87,180.74,180.72,0.04110715]
[1755811251945,2.87,180.75,180.72,0.04110715]
[1755811252147,6.28301372,180.73,180.72,0.04110715]
[1755811252347,9.15301372,180.73,180.65,2.96]
[1755811253458,6.28301372,180.7,180.62,2.92]
[1755811253757,2.99,180.69,180.62,2.92]
[1755811253958,2.99,180.69,180.58,2.92]
[1755811254555,0.03576726,180.65,180.55,372.18]
[1755811254958,0.03576726,180.65,180.56,2.92]
[1755811255154,0.03576726,180.65,180.59,2.92]
[1755811255860,0.03576726,180.65,180.58,6.28301372]
[1755811256060,0.03576726,180.65,180.59,2.92]
[1755811259355,0.03576726,180.65,180.59,8.4583]
[1755811260059,0.03576726,180.65,180.59,2.92]
[1755811262754,0.03576726,180.65,180.59,8.4584]
[1755811264363,0.03576726,180.65,180.59,2.92]
[1755811264863,0.03576726,180.65,180.56,2.92]
[1755811265260,2.99,180.64,180.56,2.92]
[1755811265663,9.27301372,180.64,180.56,2.92]
[1755811266858,9.27301372,180.64,180.52,5.5405]
[1755811267058,2.99,180.6,180.5,2.92]
[1755811267663,0.03529046,180.57,180.5,2.92]
[1755811267958,0.03529046,180.57,180.5,8.4613]
[1755811268265,0.03529046,180.57,180.5,2.92]
[1755811272362,0.03529046,180.57,180.5,8.4611]
[1755811272956,0.03529046,180.57,180.49,6.28301372]
[1755811273160,0.03529046,180.57,180.5,2.92]
[1755811273455,2.99,180.64,180.52,2.92]
[1755811273660,0.0373089,180.55,180.52,2.92]
[1755811273855,0.0373089,180.55,180.5,5.5411]
[1755811274056,2.99,180.61,180.54,2.92]
[1755811274663,0.0385652,180.59,180.49,6.28301372]
[1755811274862,0.0385652,180.59,180.5,2.92]
[1755811277164,0.0385652,180.59,180.55,2.92]
[1755811277360,0.0385652,180.59,180.56,2.92]
[1755811277666,0.0385652,180.59,180.53,2.92]
[1755811278866,0.0385652,180.59,180.53,8.4603]
[1755811280968,0.0385652,180.59,180.54,5.5401]
[1755811281165,0.0385652,180.59,180.55,2.92]
[1755811281366,0.0385652,180.59,180.52,2.92]
[1755811281562,0.0385652,180.59,180.54,2.92]
[1755811281765,0.0385652,180.59,180.56,2.92]
[1755811282371,6.89445377,180.59,180.47,2.92]
[1755811282669,6.89445377,180.59,180.5,2.92]
[1755811282863,6.85588857,180.59,180.52,2.97]
[1755811283472,0.0369964,180.57,180.53,2.97]
[1755811283669,0.0369964,180.57,180.5,5.5412]
[1755811283873,0.0369964,180.57,180.51,2.97]
[1755811285569,3.0269964,180.57,180.51,2.97]
[1755811285764,6.89288497,180.57,180.51,2.97]
[1755811290383,3.0269964,180.57,180.51,2.97]
[1755811290780,0.0369964,180.57,180.51,2.97]
[1755811292683,0.0369964,180.57,180.51,8.5108]
[1755811293087,0.0369964,180.57,180.52,2.97]
[1755811293280,0.0369964,180.57,180.51,5.5408]
[1755811293485,0.0369964,180.57,180.52,5.5407]
[1755811293687,0.0369964,180.57,180.54,2.97]
[1755811293888,0.0369964,180.57,180.51,3.86588857]
[1755811294183,0.0369964,180.57,180.55,2.97]
[1755811294386,0.0369964,180.57,180.56,2.97]
[1755811298294,2.99,180.66,180.57,2.97]
[1755811298486,2.99,180.66,180.59,3.86588857]
[1755811298691,6.85588857,180.7,180.6,2.97]
[1755811299385,2.99,180.7,180.63,0.03899024]
[1755811299584,2.99,180.7,180.63,3.00899024]
[1755811299790,6.85588857,180.73,180.63,3.00899024]
[1755811299991,6.85588857,180.73,180.63,8.54629024]
[1755811300286,6.85588857,180.73,180.63,8.5073]
[1755811300484,6.85588857,180.73,180.66,0.0365518]
[1755811300890,2.99,180.73,180.66,0.0365518]
[1755811301299,6.85588857,180.73,180.66,0.0365518]
[1755811302995,2.99,180.72,180.66,0.0365518]
[1755811303496,3.86588857,180.73,180.67,2.97]
[1755811303691,2.99,180.75,180.67,2.97]
[1755811306800,2.99,180.75,180.67,6.83588857]
[1755811308097,2.99,180.75,180.68,2.97]
[1755811308800,2.99,180.75,180.7,0.04248182]
[1755811308995,2.99,180.75,180.71,2.97]
[1755811309201,2.99,180.76,180.7,0.04248182]
[1755811312105,3.86588857,180.72,180.7,0.04248182]
[1755811312303,2.99,180.71,180.7,0.04248182]
[1755811317309,3.55,180.71,180.59,2.94]
[1755811317507,6.84588857,180.67,180.59,2.94]
[1755811318504,0.03705615,180.65,180.59,2.94]
[1755811319200,0.03705615,180.65,180.59,8.4785]
[1755811319409,0.03705615,180.65,180.59,2.94]
[1755811320802,0.03705615,180.65,180.56,3.86588857]
[1755811321002,0.03705615,180.65,180.58,3.86588857]
[1755811321208,0.03705615,180.65,180.59,2.94]
[1755811321410,2.98,180.67,180.59,2.94]
[1755811321912,0.04032402,180.64,180.59,2.94]
[1755811322309,0.04032402,180.64,180.61,2.94]
[1755811322508,0.04032402,180.64,180.63,2.94]
[1755811323005,0.04032402,180.64,180.63,8.4773]
[1755811325507,6.84588857,180.75,180.66,2.94]
[1755811326105,2.98,180.75,180.66,8.4764]
[1755811326710,2.98,180.75,180.68,2.94]
[1755811327012,2.98,180.75,180.69,0.03615386]
[1755811329418,2.98,180.75,180.7,2.94]
[1755811329612,2.98,180.79,180.7,2.94]
[1755811330415,2.98,180.79,180.73,0.03582999]
[1755811331712,2.98,180.79,180.75,2.94]
[1755811332015,2.98,180.79,180.76,2.94]
[1755811332218,2.98,180.82,180.76,2.94]
[1755811333021,2.98,180.82,180.77,0.0425725]
[1755811333419,2.98,180.85,180.79,2.94]
[1755811334219,2.98,180.85,180.8,0.03877213]
[1755811334421,375.90588857,180.87,180.8,0.03877213]
[1755811334619,2.98,180.83,180.8,0.03877213]
[1755811336613,3.86588857,180.82,180.8,0.03877213]
[1755811336820,2.98,180.81,180.8,0.03877213]
[1755811337522,2.98,180.81,180.71,3.86588857]
[1755811337718,3.86588857,180.79,180.71,3.86588857]
[1755811337919,6.84588857,180.79,180.71,3.86588857]
[1755811338425,6.84588857,180.79,180.71,2.94]
[1755811338820,0.03623032,180.77,180.71,2.94]
[1755811341720,0.03623032,180.77,180.72,3.86588857]
[1755811341920,0.03623032,180.77,180.74,2.94]
[1755811342317,0.03623032,180.77,180.7,3.86588857]
[1755811342522,0.03623032,180.77,180.71,2.94]
[1755811342726,2.98,180.79,180.71,2.94]
[1755811343224,3.05,180.75,180.71,2.88]
[1755811343823,0.03845649,180.76,180.71,3.86588857]
[1755811344024,0.03845649,180.76,180.74,2.88]
[1755811344327,0.03845649,180.76,180.75,2.88]
[1755811346329,0.03845649,180.76,180.75,8.4136]
[1755811346529,0.03845649,180.76,180.75,2.88]
[1755811348631,0.03845649,180.76,180.75,8.4136]
[1755811349638,0.03845649,180.76,180.75,12.27948857]
[1755811350435,3.05,180.83,180.77,2.88]
[1755811350732,143.21,180.86,180.79,2.88]
[1755811351736,140.16,180.86,180.81,0.03982944]
[1755811352335,3.05,180.84,180.81,0.03982944]
[1755811353139,3.05,180.84,180.81,2.91982944]
[1755811353442,3.05,180.87,180.81,2.91982944]
[1755811362652,3.05,180.87,180.81,8.45152944]
[1755811362951,3.05,180.87,180.81,2.91982944]
[1755811365257,3.05,180.92,180.83,2.88]
[1755811365553,3.05,180.92,180.84,2.88]
[1755811365953,3.05,180.92,180.86,0.0417744]
[1755811367255,3.05,180.92,180.89,2.88]